{"text_format":"3","workbook":"xlsx","n_sheets":3,"sheets":["Foglio1","Foglio2","Foglio3"],"read":"whole","date_system":"1900"}

{"sheet":"Foglio1","index":0,"n_rows":314,"n_cols":9,"rows_kept":314,"merged":[[0,0,0,8],[2,0,2,8],[3,0,3,2],[4,0,4,8],[5,0,5,8],[6,0,6,7],[7,0,7,8],[8,0,8,8],[9,0,9,7],[10,0,10,8],[11,0,11,8],[12,0,12,2],[13,0,13,2],[14,0,14,2],[15,0,15,2],[16,0,16,8],[17,0,17,8],[18,0,18,2],[19,0,19,2],[20,0,20,2],[22,0,22,8],[23,0,23,8],[24,0,24,8],[25,0,25,8],[26,0,26,8],[28,0,28,8],[29,0,29,8],[30,0,30,8],[31,0,31,8],[32,0,32,8],[33,0,33,8],[34,0,34,8],[35,0,35,8],[36,0,36,8],[37,0,37,8],[38,0,38,8],[39,0,39,8],[40,0,40,8],[41,0,41,8],[42,0,42,8],[43,0,43,8],[44,0,44,8],[45,0,45,8],[46,0,46,8],[47,0,47,8],[48,0,48,8],[49,0,49,8],[50,0,50,8],[51,0,51,8],[52,0,52,8],[53,0,53,8],[54,0,54,8],[55,0,55,8],[56,0,56,8],[57,0,57,8],[58,0,58,8],[59,0,59,8],[60,0,60,8],[61,0,61,8],[62,0,62,8],[63,0,63,8],[64,0,64,8],[65,0,65,8],[66,0,66,8],[67,0,67,8],[68,0,68,8],[69,0,69,8],[70,0,70,8],[71,0,71,8],[72,0,72,8],[73,0,73,8],[74,0,74,8],[75,0,75,8],[76,0,76,8],[77,0,77,8],[78,0,78,8],[79,0,79,8],[80,0,80,8],[81,0,81,8],[82,0,82,8],[83,0,83,8],[84,0,84,8],[85,0,85,8],[86,1,86,3],[86,7,86,8],[87,1,87,3],[87,7,87,8],[88,1,88,3],[88,7,88,8],[89,1,89,3],[89,7,89,8],[90,1,90,3],[90,7,90,8],[91,1,91,3],[91,7,91,8],[92,1,92,3],[92,7,92,8],[93,1,93,3],[93,7,93,8],[94,1,94,3],[94,7,94,8],[95,1,95,3],[95,7,95,8],[96,1,96,3],[96,7,96,8],[97,1,97,3],[97,7,97,8],[98,0,98,8],[99,0,99,8],[100,0,100,8],[101,1,101,2],[101,7,101,8],[102,1,102,2],[102,7,102,8],[103,1,103,2],[103,7,103,8],[104,1,104,2],[104,7,104,8],[105,1,105,2],[105,7,105,8],[106,1,106,2],[106,7,106,8],[107,1,107,2],[107,7,107,8],[108,1,108,2],[108,7,108,8],[109,1,109,2],[109,7,109,8],[110,1,110,2],[110,7,110,8],[111,1,111,2],[111,7,111,8],[112,1,112,2],[112,7,112,8],[113,0,113,8],[114,0,114,8],[115,5,115,6],[115,7,115,8],[116,5,116,6],[116,7,116,8],[117,5,117,6],[117,7,117,8],[118,5,118,6],[118,7,118,8],[119,5,119,6],[119,7,119,8],[120,5,120,6],[120,7,120,8],[121,5,121,6],[121,7,121,8],[122,5,122,6],[122,7,122,8],[123,5,123,6],[123,7,123,8],[124,5,124,6],[124,7,124,8],[125,5,125,6],[125,7,125,8],[126,5,126,6],[126,7,126,8],[127,0,127,8],[128,0,128,8],[129,6,129,7],[130,6,130,7],[131,6,131,7],[132,6,132,7],[133,6,133,7],[134,6,134,7],[135,6,135,7],[136,6,136,7],[137,6,137,7],[138,6,138,7],[139,6,139,7],[140,6,140,7],[141,0,141,8],[142,0,142,8],[143,5,143,6],[143,7,143,8],[144,5,144,6],[144,7,144,8],[145,5,145,6],[145,7,145,8],[146,5,146,6],[146,7,146,8],[147,5,147,6],[147,7,147,8],[148,5,148,6],[148,7,148,8],[149,5,149,6],[149,7,149,8],[150,5,150,6],[150,7,150,8],[151,5,151,6],[151,7,151,8],[152,5,152,6],[152,7,152,8],[153,5,153,6],[153,7,153,8],[154,5,154,6],[154,7,154,8],[155,0,155,8],[156,0,156,8],[157,6,157,7],[158,6,158,7],[159,6,159,7],[160,6,160,7],[161,6,161,7],[162,6,162,7],[163,6,163,7],[164,6,164,7],[165,6,165,7],[166,6,166,7],[167,6,167,7],[168,6,168,7],[169,0,169,8],[170,0,170,8],[171,0,171,8],[172,0,172,8],[173,0,173,8],[174,0,174,8],[175,0,175,8],[176,0,176,8],[177,0,177,8],[178,0,178,8],[179,0,179,8],[180,0,180,8],[181,0,181,8],[182,0,182,8],[183,0,183,8],[184,0,184,8],[185,0,185,8],[186,0,186,8],[187,0,187,8],[188,0,188,8],[189,1,189,3],[189,7,189,8],[190,1,190,3],[190,7,190,8],[191,1,191,3],[191,7,191,8],[192,1,192,3],[192,7,192,8],[193,1,193,3],[193,7,193,8],[194,1,194,3],[194,7,194,8],[195,1,195,3],[195,7,195,8],[196,1,196,3],[196,7,196,8],[197,1,197,3],[197,7,197,8],[198,1,198,3],[198,7,198,8],[199,1,199,3],[199,7,199,8],[200,1,200,3],[200,7,200,8],[201,0,201,8],[202,0,202,8],[203,1,203,2],[203,7,203,8],[204,1,204,2],[204,7,204,8],[205,1,205,2],[205,7,205,8],[206,1,206,2],[206,7,206,8],[207,1,207,2],[207,7,207,8],[208,1,208,2],[208,7,208,8],[209,1,209,2],[209,7,209,8],[210,1,210,2],[210,7,210,8],[211,1,211,2],[211,7,211,8],[212,1,212,2],[212,7,212,8],[213,1,213,2],[213,7,213,8],[214,1,214,2],[214,7,214,8],[215,0,215,8],[216,0,216,8],[217,0,217,8],[218,0,218,8],[219,0,219,8],[220,0,220,8],[221,0,221,8],[222,0,222,8],[223,1,223,3],[223,7,223,8],[224,1,224,3],[224,7,224,8],[225,1,225,3],[225,7,225,8],[226,1,226,3],[226,7,226,8],[227,1,227,3],[227,7,227,8],[228,1,228,3],[228,7,228,8],[229,1,229,3],[229,7,229,8],[230,1,230,3],[230,7,230,8],[231,1,231,3],[231,7,231,8],[232,1,232,3],[232,7,232,8],[233,1,233,3],[233,7,233,8],[234,1,234,3],[234,7,234,8],[235,0,235,8],[236,0,236,8],[237,1,237,2],[237,7,237,8],[238,1,238,2],[238,7,238,8],[239,1,239,2],[239,7,239,8],[240,1,240,2],[240,7,240,8],[241,1,241,2],[241,7,241,8],[242,1,242,2],[242,7,242,8],[243,1,243,2],[243,7,243,8],[244,1,244,2],[244,7,244,8],[245,1,245,2],[245,7,245,8],[246,1,246,2],[246,7,246,8],[247,1,247,2],[247,7,247,8],[248,1,248,2],[248,7,248,8],[249,0,249,8],[250,0,250,8],[251,0,251,8],[252,0,252,8],[253,0,253,8],[254,0,254,8],[255,0,255,8],[256,0,256,8],[257,0,257,8],[258,0,258,8],[259,0,259,8],[260,0,260,8],[261,0,261,8],[262,0,262,8],[263,0,263,8],[264,0,264,8],[265,0,265,8],[266,0,266,8],[267,0,267,8],[268,0,268,8],[269,0,269,8],[270,0,270,8],[271,0,271,8],[272,0,272,8],[273,0,273,8],[274,0,274,8],[275,0,275,8],[276,0,276,8],[277,0,277,8],[278,0,278,8],[279,0,279,8],[280,0,280,8],[281,0,281,8],[282,0,282,8],[283,0,283,8],[284,0,284,8],[285,0,285,8],[286,0,286,8],[287,0,287,8],[288,0,288,8],[289,0,289,8],[290,0,290,8],[291,0,291,8],[292,0,292,8],[293,0,293,8],[294,0,294,8],[295,0,295,8],[296,0,296,8],[297,0,297,8],[298,0,298,8],[299,0,299,8],[300,0,300,8],[301,0,301,8],[302,0,302,8],[303,0,303,8],[304,0,304,8],[305,0,305,8],[306,0,306,8],[307,0,307,8],[308,0,308,8],[309,0,309,8],[310,0,310,8],[311,0,311,8],[312,0,312,8],[313,0,313,8],[314,0,314,8]]}
["ALLEGATO A3 - SCHEDA PROGETTO PER ATTIVITÀ DI RESIDENZA – ANNI 2016/2017"]
[]
["Codice fiscale"]
[]
[]
["Denominazione soggetto"]
[]
[]
["Denominazione della residenza"]
[]
[]
["Ambito attività residenziale"]
[]
[]
[]
[]
[]
["Tipologia residenza"]
[]
[]
[]
[]
["DATI RELATIVI AGLI SPAZI"]
["Indicare la sala di spettacolo e i relativi spazi (uffici, sale prove, spazi per incontri e laboratori, etc.)"]
[]
["Indicare i titoli di gestione o disponibilità della sala di spettacolo e dei relativi spazi"]
[]
[]
["DESCRIZIONE DELLE ATTIVITA’ DI RESIDENZA, COERENTI CON OBIETTIVI E AZIONI PRIORITARIE DEL PROGETTO INTERREGIONALE"]
["OBIETTIVO A) "]
["(da compilare a preventivo)"]
["Indicare il nome di compagnia/e, artista/i in residenza con breve curriculum - anno 2016"]
[]
[]
["(da compilare a consuntivo)"]
["Indicare il nome di compagnia/e, artista/i in residenza - anno 2016"]
[]
[]
["(da compilare a preventivo)"]
["Indicare la durata e il periodo della residenza per ciascuna compagnia e artista coinvolti - anno 2016"]
[]
[]
["(da compilare a consuntivo)"]
["Indicare la durata e il periodo della residenza per ciascuna compagnia e artista coinvolti - anno 2016"]
[]
[]
["Descrizione del progetto di residenza (da compilare a preventivo) - anno 2016"]
[]
[]
["Descrizione del progetto di residenza realizzato (da compilare a consuntivo) - anno 2016"]
[]
[]
["Indicare la tipologia delle azioni di tutoraggio (consulenze artistico-culturali e/o assistenza tecnico-organizzativa) e descrivere le attività con curriculum delle persone con ruolo di tutor, consulenti o assistenza. (da compilare a preventivo) - anno 2016"]
[]
[]
["Indicare la tipologia delle azioni di tutoraggio (consulenze artistico-culturali e/o assistenza tecnico-organizzativa) e descrivere le attività (da compilare a consuntivo) - anno 2016"]
[]
[]
["Indicare eventuali collaborazione produttiva/accordi con altri soggetti titolari di residenza partecipanti al Progetto interregionale per garantire la permanenza degli artisti presso altre regioni (da compilare a preventivo) - anno 2016"]
[]
[]
["Indicare eventuali collaborazione produttiva/accordi con altri soggetti titolari di residenza partecipanti al Progetto interregionale per garantire la permanenza degli artisti presso altre regioni (da compilare a consuntivo) - anno 2016"]
[]
[]
["Indicare aspetti di multidisciplinarietà e contemporaneità - anno 2016"]
[]
[]
["Descrivere eventuali azioni di promozione riferite alla permanenza di artisti e formazioni in residenza, anche ai fini della visibilità (da compilare a preventivo) - anno 2016"]
[]
[]
["Descrivere eventuali azioni di promozione riferite alla permanenza di artisti e formazioni in residenza, anche ai fini della visibilità (da compilare a consuntivo) - anno 2016"]
[]
[]
["Eventuale esito atteso della residenza (da compilare a preventivo) - anno 2016"]
[]
[]
["Esito della residenza (da compilare a consuntivo) - anno 2016"]
[]
[]
["Previsione di attività di residenza relative all’obiettivo A per l’anno 2017"]
[]
[]
["OBIETTIVO B) "]
["ATTIVITA’ DI PROGRAMMAZIONE DELLE PRODUZIONI SVILUPPATE IN RESIDENZA, DI ARTISTI UNDER 35 E DEGLI ARTISTI EMERGENTI"]
["Programmazione di spettacoli realizzati in residenza (da compilare a preventivo) - anno 2016"]
["presso la propria sede:"]
["Date","Titolo dello spettacolo",null,null,"N. repliche a pagamento ","N. repliche a ingresso libero","Totale repliche","Compagine artistica"]
[{"$nulls":6},{"$f":"E88+F88","v":0}]
[{"$nulls":6},{"$f":"E89+F89","v":0}]
[{"$nulls":6},0]
[{"$nulls":6},0]
[{"$nulls":6},0]
[{"$nulls":6},0]
[{"$nulls":6},0]
[{"$nulls":6},0]
[{"$nulls":6},0]
[{"$nulls":6},0]
[{"$nulls":6},0]
[]
["Programmazione di spettacoli realizzati in residenza (da compilare a consuntivo) - anno 2016"]
["presso la propria sede:"]
["Date","Titolo dello spettacolo",null,"N. repliche a pagamento ","N. repliche a ingresso libero","Totale repliche","N. spettatori","Compagine artistica"]
[{"$nulls":5},{"$f":"D103+E103","v":0}]
[{"$nulls":5},{"$f":"D104+E104","v":0}]
[{"$nulls":5},0]
[{"$nulls":5},0]
[{"$nulls":5},0]
[{"$nulls":5},0]
[{"$nulls":5},0]
[{"$nulls":5},0]
[{"$nulls":5},0]
[{"$nulls":5},0]
[{"$nulls":5},0]
[]
["presso altri titolari di residenza partecipanti al Progetto Interregionale (da compilare a preventivo)"]
["Date","Titolo dello spettacolo","N. repliche a pagamento","N. repliche a ingresso libero","Totale repliche","Compagine artistica",null,"Sede e gestore"]
[{"$nulls":4},{"$f":"C117+D117","v":0}]
[{"$nulls":4},{"$f":"C118+D118","v":0}]
[{"$nulls":4},0]
[{"$nulls":4},0]
[{"$nulls":4},0]
[{"$nulls":4},0]
[{"$nulls":4},0]
[{"$nulls":4},0]
[{"$nulls":4},0]
[{"$nulls":4},0]
[{"$nulls":4},0]
[]
["presso altri titolari di residenza partecipanti al Progetto Interregionale (da compilare a consuntivo)"]
["Date","Titolo dello spettacolo","N. repliche a pagamento","N. repliche a ingresso libero","Totale repliche","N. spettatori","Compagine artistica",null,"Sede e gestore"]
[{"$nulls":4},{"$f":"C131+D131","v":0}]
[{"$nulls":4},{"$f":"C132+D132","v":0}]
[{"$nulls":4},0]
[{"$nulls":4},0]
[{"$nulls":4},0]
[{"$nulls":4},0]
[{"$nulls":4},0]
[{"$nulls":4},0]
[{"$nulls":4},0]
[{"$nulls":4},0]
[{"$nulls":4},0]
[]
["presso altre sedi (da compilare a preventivo)"]
["Date","Titolo dello spettacolo","N. repliche a pagamento","N. repliche a ingresso libero","Totale repliche","Compagine artistica",null,"Sede e gestore"]
[{"$nulls":4},{"$f":"C145+D145","v":0}]
[{"$nulls":4},{"$f":"C146+D146","v":0}]
[{"$nulls":4},0]
[{"$nulls":4},0]
[{"$nulls":4},0]
[{"$nulls":4},0]
[{"$nulls":4},0]
[{"$nulls":4},0]
[{"$nulls":4},0]
[{"$nulls":4},0]
[{"$nulls":4},0]
[]
["presso altre sedi (da compilare a consuntivo)"]
["Date","Titolo dello spettacolo","N. repliche a pagamento","N. repliche a ingresso libero","Totale repliche","N. spettatori","Compagine artistica",null,"Sede e gestore"]
[{"$nulls":4},{"$f":"C159+D159","v":0}]
[{"$nulls":4},{"$f":"C160+D160","v":0}]
[{"$nulls":4},0]
[{"$nulls":4},0]
[{"$nulls":4},0]
[{"$nulls":4},0]
[{"$nulls":4},0]
[{"$nulls":4},0]
[{"$nulls":4},0]
[{"$nulls":4},0]
[{"$nulls":4},0]
[]
["Descrizione delle sedi ospitanti (da compilare a preventivo) - anno 2016"]
[]
[]
["Descrizione delle sedi ospitanti (da compilare a consuntivo solo in caso di modifiche) - anno 2016"]
[]
[]
["Indicare eventuali collaborazione produttiva/accordi per garantire la circuitazione degli spettacoli e la visibilità delle compagini artistiche (da compilare a preventivo) - anno 2016"]
["con altri titolari di residenza partecipanti al Progetto interregionale "]
[]
["con altri soggetti"]
[]
[]
["Indicare eventuali collaborazione produttiva/accordi per garantire la circuitazione degli spettacoli e la visibilità delle compagini artistiche (da compilare a consuntivo solo in caso di modifiche) - anno 2016"]
["con altri titolari di residenza partecipanti al Progetto interregionale "]
[]
["con altri soggetti"]
[]
[]
["Programmazione di spettacoli realizzati da artisti emergenti presso la propria sede (da compilare a preventivo) - anno 2016"]
["Date","Titolo dello spettacolo",null,null,"N. repliche a pagamento ","N. repliche a ingresso libero","Totale repliche","Compagine artistica"]
[{"$nulls":6},{"$f":"E191+F191","v":0}]
[{"$nulls":6},{"$f":"E192+F192","v":0}]
[{"$nulls":6},0]
[{"$nulls":6},0]
[{"$nulls":6},0]
[{"$nulls":6},0]
[{"$nulls":6},0]
[{"$nulls":6},0]
[{"$nulls":6},0]
[{"$nulls":6},0]
[{"$nulls":6},0]
[]
["Programmazione di spettacoli realizzati da artisti emergenti presso la propria sede (da compilare a consuntivo) - anno 2016"]
["Date","Titolo dello spettacolo",null,"N. repliche a pagamento ","N. repliche a ingresso libero","Totale repliche","N. spettatori","Compagine artistica"]
[{"$nulls":5},{"$f":"D205+E205","v":0}]
[{"$nulls":5},{"$f":"D206+E206","v":0}]
[{"$nulls":5},0]
[{"$nulls":5},0]
[{"$nulls":5},0]
[{"$nulls":5},0]
[{"$nulls":5},0]
[{"$nulls":5},0]
[{"$nulls":5},0]
[{"$nulls":5},0]
[{"$nulls":5},0]
[]
["Indicazione dei premi e delle segnalazioni ottenute dalle compagini artistiche programmate nelle ultime 3 edizioni dei principali premi nazionali di musica, di teatro e di danza (da compilare a preventivo) - anno 2016"]
[]
[]
["Indicazione dei premi e delle segnalazioni ottenute dalle compagini artistiche programmate nelle ultime 3 edizioni dei principali premi nazionali di musica, di teatro e di danza (da compilare a consuntivo) - anno 2016"]
[]
[]
["Programmazione di spettacoli realizzati da artisti under 35 presso la propria sede (da compilare a preventivo) - anno 2016"]
["Date","Titolo dello spettacolo",null,null,"N. repliche a pagamento ","N. repliche a ingresso libero","Totale repliche","Compagine artistica"]
[{"$nulls":6},{"$f":"E225+F225","v":0}]
[{"$nulls":6},{"$f":"E226+F226","v":0}]
[{"$nulls":6},0]
[{"$nulls":6},0]
[{"$nulls":6},0]
[{"$nulls":6},0]
[{"$nulls":6},0]
[{"$nulls":6},0]
[{"$nulls":6},0]
[{"$nulls":6},0]
[{"$nulls":6},0]
[]
["Programmazione di spettacoli realizzati da artisti under 35 presso la propria sede (da compilare a consuntivo) - anno 2016"]
["Date","Titolo dello spettacolo",null,"N. repliche a pagamento ","N. repliche a ingresso libero","Totale repliche","N. spettatori","Compagine artistica"]
[{"$nulls":5},{"$f":"D239+E239","v":0}]
[{"$nulls":5},{"$f":"D240+E240","v":0}]
[{"$nulls":5},0]
[{"$nulls":5},0]
[{"$nulls":5},0]
[{"$nulls":5},0]
[{"$nulls":5},0]
[{"$nulls":5},0]
[{"$nulls":5},0]
[{"$nulls":5},0]
[{"$nulls":5},0]
[]
["Elenco dei componenti dell’organico dalle compagini artistiche programmate, con indicazione del nome, cognome, ruolo e data di nascita (da compilare a preventivo) - anno 2016"]
[]
[]
["Elenco dei componenti dell’organico dalle compagini artistiche programmate, con indicazione del nome, cognome, ruolo e data di nascita (da compilare a consuntivo solo in caso di modifiche) - anno 2016"]
[]
[]
["Indicare aspetti di multidisciplinarietà e contemporaneità della programmazione (da compilare a preventivo) - anno 2016"]
[]
[]
["Indicare aspetti di multidisciplinarietà e contemporaneità della programmazione (da compilare a consuntivo solo in caso di modifiche) - anno 2016"]
[]
[]
["Descrivere eventuali azioni a supporto della visibilità delle compagini artistiche programmate, anche attraverso strumenti innovativi (da compilare a preventivo) - anno 2016"]
[]
[]
["Descrivere eventuali azioni a supporto della visibilità delle compagini artistiche programmate, anche attraverso strumenti innovativi  (da compilare a consuntivo solo in caso di modifiche) - anno 2016"]
[]
[]
["AZIONI DI PROMOZIONE DELLA PROGRAMMAZIONE"]
["Descrivere le azioni di promozione previste (da compilare a preventivo) - anno 2016"]
[]
[]
["AZIONI DI PROMOZIONE DELLA PROGRAMMAZIONE"]
["Descrivere le azioni di promozione realizzate (da compilare a consuntivo) - anno 2016"]
[]
[]
["Previsione di attività di residenza relative all’obiettivo B per l’anno 2017"]
[]
[]
["OBIETTIVO C)"]
["Descrizione delle attività di formazione e di educazione del pubblico con indicazione dell'obiettivo, del target e degli strumenti da utilizzare, mirate a rafforzare la relazione fra le Residenze e i rispettivi territori, con attenzione al pubblico giovane e ai linguaggi contemporanei (da compilare a preventivo) - anno 2016"]
[]
[]
["Descrizione delle attività di formazione e di educazione del pubblico con indicazione dell'obiettivo, del target e degli strumenti da utilizzare, mirate a rafforzare la relazione fra le Residenze e i rispettivi territori, con attenzione al pubblico giovane e ai linguaggi contemporanei (da compilare a consuntivo) - anno 2016"]
[]
[]
["Indicare collaborazione di altri soggetti e operatori culturali e artistici del territorio; (da compilare a preventivo) - anno 2016"]
[]
[]
["Indicare collaborazione di altri soggetti e operatori culturali e artistici del territorio; (da compilare a consuntivo solo in caso di modifiche) - anno 2016"]
[]
[]
["Luogo di svolgimento del progetto/delle attività previste (da compilare a preventivo) - anno 2016"]
[]
[]
["Luogo di svolgimento del progetto/delle attività previste (da compilare a consuntivo) - anno 2016"]
[]
[]
["Personale coinvolto nelle azioni di promozione del pubblico (numero, attività svolte..) (da compilare a preventivo) - anno 2016"]
[]
[]
["Personale coinvolto nelle azioni di promozione del pubblico (numero, attività svolte..) (da compilare a consuntivo) - anno 2016"]
[]
[]
["Descrizione delle attività di confronto/collaborazione con altri soggetti titolari di residenze per lo sviluppo e la diffusione delle migliori esperienze e pratiche, con particolare attenzione a quelle orientate ai pubblici giovani e alla formazione sui linguaggi del contemporaneo. (da compilare a preventivo) - anno 2016"]
[]
[]
["Descrizione delle attività di confronto/collaborazione con altri soggetti titolari di residenze per lo sviluppo e la diffusione delle migliori esperienze e pratiche, con particolare attenzione a quelle orientate ai pubblici giovani e alla formazione sui linguaggi del contemporaneo.  (da compilare a consuntivo solo in caso di modifiche) - anno 2016"]
[]
[]
["Indicazione di eventuali partecipazioni a incontri interregionali fra i titolari di residenza per lo scambio delle pratiche (da compilare a consuntivo) - anno 2016"]
[]
[]
["Previsione di attività di residenza relative all’obiettivo C per l’anno 2017"]

{"sheet":"Foglio2","index":1,"n_rows":0,"n_cols":0,"rows_kept":0}

{"sheet":"Foglio3","index":2,"n_rows":0,"n_cols":0,"rows_kept":0}